fUSD/lending_fUSD_20251103
["ID","MTS","AMOUNT","RATE_DAILY","PERIOD"]
[392924989,1762147507780,150.0,0.00013488,2]
[392924990,1762147507897,150.0,0.00014237,2]
[392924991,1762147508235,-180.45480722,0.0001446,2]
[392924992,1762147509877,-441.2205273,0.0001446,2]
[392924993,1762147511398,-264.74107672,0.0001446,2]
[392924994,1762147512945,-378.60623418,0.0001446,2]
[392924995,1762147513394,150.0,0.00013488,2]
[392924996,1762147513438,150.0,0.00013862,2]
[392924997,1762147513503,150.0,0.00014237,2]
[392924998,1762147513809,150.0,0.00013488,2]
[392924999,1762147513870,150.0,0.00013987,2]
[392925000,1762147514601,-250.4602882,0.0001446,2]
[392925001,1762147515394,150.0,0.00013488,2]
[392925002,1762147515464,150.0,0.00013595,2]
[392925003,1762147515541,150.0,0.00013702,2]
[392925004,1762147515605,150.0,0.00013809,2]
[392925005,1762147515687,150.0,0.00013916,2]
[392925006,1762147515763,150.0,0.00014023,2]
[392925007,1762147515827,150.0,0.0001413,2]
[392925008,1762147515892,150.0,0.00014237,2]
[392925009,1762147515964,150.0,0.00014344,2]
[392925010,1762147516041,150.0,0.00014451,2]
[392925011,1762147517312,-672.62472113,0.0001446,2]
[392925012,1762147518168,744.37,0.0001446,2]
[392925013,1762147520690,150.0,0.00013488,2]
[392925014,1762147520722,-622.3902203,0.0001446,2]
[392925015,1762147521638,189.35451242,0.00014,2]
[392925016,1762147521784,202.84707978,0.00013488,2]
[392925017,1762147524829,-300.0,0.0001446,2]
[392925018,1762147525866,262.06521572,0.00013488,2]
[392925019,1762147526179,150.0,0.00013488,2]
[392925020,1762147526320,150.0,0.00013488,2]
[392925021,1762147526401,150.0,0.00013488,2]
[392925022,1762147526471,150.0,0.00013987,2]
[392925023,1762147526963,-302.46887359,0.0001446,2]
[392925024,1762147528098,150.0,0.00013787,2]
[392925025,1762147528138,150.0,0.00014087,2]
[392925026,1762147528177,150.0,0.00013488,2]
[392925027,1762147528216,150.0,0.00014387,2]
[392925028,1762147531147,150.0,0.00013488,2]
[392925029,1762147531210,150.0,0.00013654,2]
[392925030,1762147531285,150.0,0.00013821,2]
[392925031,1762147531353,150.0,0.00013987,2]
[392925032,1762147531408,-194.99544923,0.0001446,2]
[392925033,1762147531447,150.0,0.00014154,2]
[392925034,1762147531487,150.0,0.0001432,2]
[392925035,1762147534740,-71.93758006,0.0001446,2]
[392925036,1762147534764,-289.62916472,0.00014464,2]
[392925037,1762147536748,-10.37083528,0.00014464,2]
[392925038,1762147536772,-231.11168865,0.00014468,2]
[392925039,1762147536800,-48.70545777,0.00014468,2]
[392925040,1762147538809,-152.29454223,0.00014468,2]
[392925041,1762147538838,-10.44440494,0.00014472,2]
[392925042,1762147540766,-152.62543407,0.00014472,2]
[392925043,1762147542639,-37.93016099,0.00014472,2]
[392925044,1762147542661,-319.79603012,0.00014476,2]
[392925045,1762147544293,-199.22908831,0.00014476,2]
[392925046,1762147546611,-176.49702007,0.00014476,2]
[392925047,1762147548167,-961.56673312,0.00014476,2]
[392925048,1762147554615,-3348.35453188,0.00014476,2]
[392925049,1762147555842,-194.9694206,0.00014476,2]
[392925050,1762147561508,-300.0,0.00014475,2]
[392925054,1762147568232,-5669.20057778,0.00014476,2]
[392925055,1762147568276,-10000.01,0.00014476,2]
[392925056,1762147568412,-10000.01,0.00014476,2]
[392925057,1762147570251,-10000.01,0.00014476,2]
[392925058,1762147570488,-2570.54094482,0.00014476,2]
[392925059,1762147579349,-150.0,0.00014487,2]
[392925060,1762147579373,-49.40832095,0.00014487,2]
[392925061,1762147589254,150.0,0.00013691,2]
[392925073,1762147661020,550.41,0.00013664,2]
[392925076,1762147705555,200.0,0.00013656,2]
[392925078,1762147715888,152.51,0.00010925,2]
[392925084,1762147716077,152.51,0.0001229,2]
[392925087,1762147716287,152.51,0.00013656,2]
[392925088,1762147733843,290.4,0.00013664,2]
[392925089,1762147763924,-238.70286976,0.00014373,2]
[392925090,1762147764770,-168.0,0.00014422,2]
[392925091,1762147764793,-280.4992543,0.00014423,2]
[392925092,1762147767496,-9.9007457,0.00014423,2]
[392925093,1762147767519,-162.7673579,0.00014437,2]
[392925094,1762147770210,168.0,0.0001416,2]
[392925120,1762147832060,-75.93551186,0.00014437,2]
[392925122,1762147832071,-300.0,0.00014472,2]
[392925125,1762147832081,-1200.0,0.00014472,2]
[392925126,1762147832091,-300.0,0.00014472,2]
[392925127,1762147832102,-300.0,0.00014472,2]
[392925128,1762147832111,-300.0,0.00014472,2]
[392925129,1762147832121,-3842.8359963,0.00014473,2]
[392925130,1762147832131,-20546.8584961,0.00014473,2]
[392925131,1762147832141,-100.59167905,0.00014487,2]
[392925132,1762147832151,-150.0,0.00014487,2]
[392925133,1762147832161,-150.0,0.00014487,2]
[392925134,1762147832170,-300.0,0.00014487,2]
[392925135,1762147832180,-267.69608267,0.00014487,2]
[392925136,1762147832191,-200.0,0.00014487,2]
[392925137,1762147832201,-238.70286976,0.000145,2]
[392925138,1762147832210,-530.0,0.00014533,2]
[392925139,1762147832220,-150.0,0.00014533,2]
[392925140,1762147832230,-3769.0309195,0.00014534,2]
[392925141,1762147832243,-150.0,0.00014537,2]
[392925142,1762147832252,-150.0,0.00014558,2]
[392925143,1762147832262,-201.0,0.00014581,2]
[392925144,1762147832279,-4820.6407571,0.00014583,2]
[392925145,1762147832289,-787.00388739,0.00014591,2]
[392925146,1762147832299,-239.84119403,0.00014591,2]
[392925147,1762147832309,-184.24774086,0.00014597,2]
[392925148,1762147832321,-1000.0,0.000146,2]
[392925149,1762147832330,-999.99,0.000146,2]
[392925151,1762147832341,-3847.41,0.000146,2]
[392925153,1762147832351,-5573.11,0.000146,2]
[392925155,1762147832362,-9999.99,0.000146,2]
[392925156,1762147832371,-2500.0,0.000146,2]
[392925157,1762147832382,-150.0,0.00014612,2]
[392925158,1762147832392,-400.34218736,0.00014624,2]
[392925160,1762147832402,-4474.50342114,0.00014624,2]
[392925162,1762147832411,-1520.52,0.00014633,2]
[392925163,1762147832429,-150.99,0.00014633,2]
[392925164,1762147832439,-9999.99,0.00014633,2]
[392925165,1762147832449,-150.0,0.00014653,2]
[392925166,1762147832459,-500.0,0.00014654,2]
[392925167,1762147832468,-500.0,0.00014654,2]
[392925168,1762147832478,-500.0,0.00014654,2]
[392925169,1762147832488,-500.0,0.00014654,2]
[392925170,1762147832497,-500.0,0.00014654,2]
[392925171,1762147832507,-500.0,0.00014654,2]
[392925172,1762147832517,-500.0,0.00014654,2]
[392925173,1762147832528,-4474.50342106,0.00014655,2]
[392925174,1762147832538,-150.0,0.00014665,2]
[392925175,1762147832547,-299.99,0.00014667,2]
[392925176,1762147832557,-306.9,0.00014667,2]
[392925177,1762147832567,-3780.67,0.00014667,2]
[392925178,1762147832576,-1533.11,0.00014667,2]
[392925179,1762147832586,-4474.50342106,0.00014685,2]
[392925180,1762147832596,-150.0,0.00014687,2]
[392925181,1762147832605,-150.0,0.00014687,2]
[392925182,1762147832615,-1028.52,0.00014691,2]
[392925183,1762147832625,-322.6107,0.00014691,2]
[392925184,1762147832639,-202.83170012,0.00014691,2]
[392925185,1762147832649,-151.0,0.00014691,2]
[392925186,1762147832659,-623.58710448,0.00014691,2]
[392925187,1762147832669,-151.0,0.00014691,2]
[392925188,1762147832679,-151.0,0.00014691,2]
[392925189,1762147832689,-387.22082022,0.00014691,2]
[392925190,1762147832700,-151.0,0.00014691,2]
[392925191,1762147832709,-500.0,0.00014691,2]
[392925192,1762147832720,-151.0,0.00014691,2]
[392925193,1762147832730,-500.0,0.00014691,2]
[392925194,1762147832740,-162.9741838,0.00014691,2]
[392925195,1762147832749,-500.0,0.00014691,2]
[392925196,1762147832759,-151.0,0.00014691,2]
[392925197,1762147832769,-151.0,0.00014691,2]
[392925198,1762147832779,-500.0,0.00014691,2]
[392925199,1762147832788,-500.0,0.00014691,2]
[392925200,1762147832798,-151.0,0.00014691,2]
[392925201,1762147832809,-192.99999984,0.00014691,2]
[392925202,1762147832819,-500.0,0.00014691,2]
[392925203,1762147832829,-500.0,0.00014691,2]
[392925204,1762147832838,-151.0,0.00014691,2]
[392925205,1762147832849,-500.0,0.00014691,2]
[392925206,1762147832859,-500.0,0.00014691,2]
[392925207,1762147832868,-500.0,0.00014691,2]
[392925208,1762147832878,-500.0,0.00014691,2]
[392925209,1762147832888,-500.0,0.00014691,2]
[392925210,1762147832898,-500.0,0.00014691,2]
[392925211,1762147832909,-573.21060322,0.00014691,2]
[392925212,1762147832918,-500.0,0.00014691,2]
[392925213,1762147832929,-151.0,0.00014691,2]
[392925214,1762147832938,-151.0,0.00014691,2]
[392925215,1762147832948,-496.47127164,0.00014691,2]
[392925216,1762147832958,-500.0,0.00014691,2]
[392925217,1762147832968,-151.0,0.00014691,2]
[392925218,1762147832978,-500.0,0.00014691,2]
[392925219,1762147832987,-151.0,0.00014691,2]
[392925220,1762147833001,-151.0,0.00014691,2]
[392925221,1762147833011,-500.0,0.00014691,2]
[392925222,1762147833020,-151.0,0.00014691,2]
[392925223,1762147833030,-200.0,0.00014691,2]
[392925224,1762147833041,-151.0,0.00014691,2]
[392925225,1762147833051,-500.0,0.00014691,2]
[392925226,1762147833061,-151.0,0.00014691,2]
[392925227,1762147833071,-500.0,0.00014691,2]
[392925228,1762147833081,-151.0,0.00014691,2]
[392925229,1762147833091,-151.0,0.00014691,2]
[392925230,1762147833101,-500.0,0.00014691,2]
[392925231,1762147833110,-219.92079299,0.00014691,2]
[392925232,1762147833120,-500.0,0.00014691,2]
[392925233,1762147833130,-500.0,0.00014691,2]
[392925234,1762147833139,-500.0,0.00014691,2]
[392925235,1762147833149,-500.0,0.00014691,2]
[392925236,1762147833160,-500.0,0.00014691,2]
[392925237,1762147833170,-500.0,0.00014691,2]
[392925238,1762147833179,-500.0,0.00014691,2]
[392925239,1762147833192,-500.0,0.00014691,2]
[392925240,1762147833202,-500.0,0.00014691,2]
[392925241,1762147833212,-500.0,0.00014691,2]
[392925242,1762147833222,-632.19449152,0.00014695,2]
[392925243,1762147833233,-151.0,0.00014697,2]
[392925244,1762147833248,-2322.083,0.00014698,2]
[392925245,1762147833260,-152.368,0.00014698,2]
[392925246,1762147833285,-186.95163015,0.00014699,2]
[392925247,1762147833303,-492.75128555,0.00014699,2]
[392925248,1762147833314,-500.0,0.00014699,2]
[392925249,1762147833324,-175.9733882,0.00014699,2]
[392925250,1762147833334,-500.0,0.00014699,2]
[392925251,1762147833344,-571.7777344,0.00014699,2]
[392925252,1762147833354,-26151.8892,0.000147,2]
[392925253,1762147833363,-165886.0796,0.000147,2]
[392925254,1762147833373,-1000.0,0.00014707,2]
[392925255,1762147833383,-4474.50342106,0.00014716,2]
[392925256,1762147833393,-1000.0,0.00014718,2]
[392925257,1762147833405,-1425.0,0.00014724,2]
[392925258,1762147833416,-1000.0,0.00014727,2]
[392925259,1762147833425,-1000.0,0.00014743,2]
[392925260,1762147833435,-4474.50342106,0.00014747,2]
[392925261,1762147833444,-1425.0,0.00014753,2]
[392925262,1762147833454,-1425.0,0.00014753,2]
[392925263,1762147833465,-1425.0,0.00014759,2]
[392925264,1762147833475,-223.6948556,0.00014772,2]
[392925265,1762147833486,-150.0,0.00014772,2]
[392925266,1762147833496,-4474.50342106,0.00014777,2]
[392925267,1762147833505,-1425.0,0.00014784,2]
[392925268,1762147833515,-168.0,0.00014784,2]
[392925269,1762147833525,-500.0,0.00014787,2]
[392925270,1762147833535,-500.0,0.00014787,2]
[392925271,1762147833544,-992.99896651,0.00014789,2]
[392925272,1762147833554,-1000.0,0.00014791,2]
[392925273,1762147833564,-1425.0,0.00014795,2]
[392925274,1762147833574,-522.74089368,0.00014798,2]
[392925275,1762147833583,-500.0,0.00014798,2]
[392925276,1762147833593,-500.0,0.00014798,2]
[392925277,1762147833605,-508.81967182,0.00014798,2]
[392925278,1762147833615,-500.0,0.00014798,2]
[392925279,1762147833624,-500.0,0.00014798,2]
[392925280,1762147833634,-507.61057282,0.00014798,2]
[392925281,1762147833644,-500.0,0.00014798,2]
[392925282,1762147833653,-532.85307949,0.00014798,2]
[392925283,1762147833663,-500.0,0.00014798,2]
[392925284,1762147833680,-500.0,0.00014798,2]
[392925285,1762147833690,-500.0,0.00014799,2]
[392925286,1762147833700,-235.7197886,0.00014806,2]
[392925287,1762147833709,-1425.0,0.00014808,2]
[392925288,1762147833719,-4474.50342106,0.00014808,2]
[392925289,1762147833728,-235.71978852,0.00014816,2]
[392925290,1762147833738,-512.43340892,0.00014818,2]
[392925291,1762147833748,-150.0,0.0001482,2]
[392925292,1762147833758,-235.71978852,0.00014827,2]
[392925293,1762147833768,-506.26309284,0.0001483,2]
[392925294,1762147833778,-566.95342,0.0001483,2]
[392925295,1762147833787,-566.95342,0.0001483,2]
[392925296,1762147833797,-1000.0,0.00014832,2]
[392925297,1762147833808,-150.0,0.00014836,2]
[392925298,1762147833818,-235.71978852,0.00014837,2]
[392925299,1762147833827,-4474.50342106,0.00014839,2]
[392925300,1762147833837,-566.95342,0.0001484,2]
[392925301,1762147833847,-235.71978852,0.00014848,2]
[392925302,1762147833857,-235.71978852,0.00014858,2]
[392925303,1762147833867,-288.70567615,0.00014859,2]
[392925304,1762147833876,-235.71978852,0.00014869,2]
[392925305,1762147833886,-4474.50342106,0.00014869,2]
[392925306,1762147833895,-235.71978852,0.00014879,2]
[392925307,1762147833905,-150.0,0.00014879,2]
[392925308,1762147833915,-200.0,0.0001488,2]
[392925309,1762147833924,-276.70149266,0.0001488,2]
[392925310,1762147833934,-414.47520423,0.0001488,2]
[392925311,1762147833944,-1000.0,0.00014889,2]
[392925312,1762147833953,-235.71978852,0.0001489,2]
[392925313,1762147833963,-318.81880182,0.0001489,2]
[392925314,1762147833972,-276.70149266,0.0001489,2]
[392925315,1762147833982,-1425.0,0.00014891,2]
[392925316,1762147833991,-301.0,0.00014898,2]
[392925317,1762147834001,-5000.0,0.00014899,2]
[392925318,1762147834011,-521.11472397,0.00014899,2]
[392925319,1762147834020,-5162.09363357,0.000149,2]
[392925320,1762147834030,-1000.0,0.000149,2]
[392925321,1762147834039,-500.0,0.000149,2]
[392925322,1762147834050,-158.33142409,0.000149,2]
[392925323,1762147834059,-500.0,0.000149,2]
[392925324,1762147834069,-276.70149266,0.000149,2]
[392925325,1762147834079,-253.00839205,0.000149,2]
[392925326,1762147834088,-730.2012218,0.000149,2]
[392925327,1762147834098,-189.57582796,0.000149,2]
[392925328,1762147834108,-4474.50342106,0.000149,2]
[392925329,1762147834118,-235.71978852,0.000149,2]
[392925330,1762147834128,-242383.2955175,0.00014901,2]
[392925331,1762147834138,-1425.0,0.00014906,2]
[392925332,1762147834148,-1425.0,0.00014912,2]
[392925333,1762147834158,-1425.0,0.00014915,2]
[392925334,1762147834169,-1000.0,0.0001492,2]
[392925335,1762147834178,-1425.0,0.00014929,2]
[392925336,1762147834188,-1425.0,0.0001493,2]
[392925337,1762147834199,-201.0,0.00014933,2]
[392925338,1762147834212,-768.34189466,0.00014936,2]
[392925339,1762147834222,-1425.0,0.00014942,2]
[392925340,1762147834233,-2945.0,0.00014944,2]
[392925341,1762147834247,-913.798,0.00014945,2]
[392925342,1762147834257,-2801.384,0.00014945,2]
[392925343,1762147834267,-820.0,0.00014945,2]
[392925344,1762147834276,-27359.6368048,0.00014954,2]
[392925345,1762147834287,-1028.52,0.00014965,2]
[392925346,1762147834297,-195.58438164,0.0001497,2]
[392925347,1762147834307,-415.21624887,0.00014973,2]
[392925348,1762147834321,-500.0,0.00014973,2]
[392925349,1762147834332,-500.0,0.00014973,2]
[392925350,1762147834342,-174.92888779,0.00014973,2]
[392925351,1762147834352,-500.0,0.00014973,2]
[392925352,1762147834361,-500.0,0.00014973,2]
[392925353,1762147834371,-500.0,0.00014973,2]
[392925354,1762147834380,-500.0,0.00014973,2]
[392925355,1762147834390,-500.0,0.00014973,2]
[392925356,1762147834400,-496.46853474,0.00014973,2]
[392925357,1762147834409,-500.0,0.00014973,2]
[392925358,1762147834418,-500.0,0.00014974,2]
[392925359,1762147834428,-500.0,0.00014974,2]
[392925360,1762147834437,-522.03466739,0.00014974,2]
[392925361,1762147834447,-500.0,0.00014974,2]
[392925362,1762147834456,-648.84631642,0.00014974,2]
[392925363,1762147834465,-378.78736526,0.00014974,2]
[392925364,1762147834475,-611.79897419,0.00014974,2]
[392925365,1762147834484,-500.0,0.00014974,2]
[392925366,1762147834494,-200.0,0.00014975,2]
[392925367,1762147834503,-200.0,0.00014975,2]
[392925368,1762147834513,-581.92091872,0.00014975,2]
[392925369,1762147834523,-153.96997627,0.00014975,2]
[392925370,1762147834532,-566.95341,0.00014975,2]
[392925371,1762147834542,-566.95342,0.00014975,2]
[392925372,1762147834551,-566.95341,0.00014975,2]
[392925373,1762147834561,-153.83494713,0.00014975,2]
[392925374,1762147834571,-825.0,0.00014975,2]
[392925375,1762147834581,-260.9945694,0.00014975,2]
[392925376,1762147834590,-168.0,0.00014976,2]
[392925377,1762147834599,-500.0,0.00014979,2]
[392925378,1762147834609,-500.0,0.00014979,2]
[392925379,1762147834618,-500.0,0.00014979,2]
[392925380,1762147834627,-500.0,0.00014979,2]
[392925381,1762147834637,-500.0,0.00014979,2]
[392925382,1762147834646,-500.0,0.00014979,2]
[392925383,1762147834655,-500.0,0.00014979,2]
[392925384,1762147834666,-500.0,0.00014979,2]
[392925385,1762147834676,-500.0,0.00014979,2]
[392925386,1762147834686,-500.0,0.00014979,2]
[392925387,1762147834695,-487.35954505,0.00014979,2]
[392925388,1762147834705,-666.0,0.00014979,2]
[392925389,1762147834715,-315926.59238306,0.0001498,2]
[392925390,1762147835043,-578.59140228,0.0001498,2]
[392925391,1762147835055,-574.6,0.0001498,2]
[392925392,1762147835087,-500.0,0.00014654,2]
[392925393,1762147835096,-2617.05382478,0.0001498,2]
[392925394,1762147835108,-504.400004,0.0001498,2]
[392925395,1762147835119,-7955.11883803,0.0001498,2]
[392925396,1762147835186,-500.0,0.00014654,2]
[392925397,1762147835195,-369.49440436,0.00014654,2]
[392925398,1762147835206,-130.50559564,0.00014654,2]
[392925399,1762147835216,-500.0,0.00014654,2]
[392925400,1762147835225,-1384.61358988,0.0001498,2]
[392925401,1762147835238,-134644.21743924,0.0001498,2]
[392925402,1762147835251,-279611.32821819,0.0001498,2]
[392925403,1762147835263,-1254.41808677,0.0001498,2]
[392925404,1762147837992,-500.0,0.00014654,2]
[392925405,1762147838002,-500.0,0.00014654,2]
[392925406,1762147838012,-481.75521058,0.00014654,2]
[392925407,1762147838021,-500.0,0.00014654,2]
[392925408,1762147838031,-500.0,0.00014654,2]
[392925409,1762147838040,-24.34189623,0.00014654,2]
[392925410,1762147838052,-475.65810377,0.00014654,2]
[392925411,1762147838063,-573.0,0.00014945,2]
[392925412,1762147838072,-1294.80964494,0.0001498,2]
[392925413,1762147838085,-4623.71999903,0.0001498,2]
[392925414,1762147838096,-24751.41695543,0.0001498,2]
[392925415,1762147838108,-4262.2450239,0.0001498,2]
[392925416,1762147838122,-1008.59522097,0.0001498,2]
[392925417,1762147838134,-4999.91255724,0.0001498,2]
[392925418,1762147838145,-5254.56915896,0.0001498,2]
[392925419,1762147838156,-3055.164867,0.0001498,2]
[392925420,1762147838168,-4457.9851755,0.0001498,2]
[392925421,1762147838179,-5353.2532445,0.0001498,2]
[392925422,1762147838191,-4592.63923609,0.0001498,2]
[392925423,1762147838206,-1271.5837646,0.0001498,2]
[392925455,1762147839996,-395.35,0.0001498,2]
[392925457,1762147840008,-781.06000001,0.0001498,2]
[392925463,1762147840057,-7934.42695492,0.0001498,2]
[392925472,1762147840656,-1.6e-07,0.0001498,2]
[392925473,1762147840667,-2418.0,0.0001498,2]
[392925474,1762147840679,-46238.59685503,0.0001498,2]
[392925475,1762147840689,-1162.97547029,0.0001498,2]
[392925476,1762147840700,-923.63456592,0.0001498,2]
[392925477,1762147840723,-642.42493171,0.0001498,2]
[392925478,1762147840734,-2130.66801095,0.0001498,2]
[392925481,1762147843213,-545.73858892,0.00014638,2]
[392925482,1762147843280,-691.75141108,0.00014638,2]
[392925483,1762147843289,-270.23858892,0.0001498,2]
[392925490,1762147846051,-610763.55423585,0.0001498,2]
[392925491,1762147846064,-1109.00649999,0.0001498,2]
[392925492,1762147846274,-533.32467953,0.0001498,2]
[392925493,1762147846287,-826.049999,0.0001498,2]
[392925494,1762147846334,-1297.525,0.0001498,2]
[392925602,1762147867962,3098.39,0.00014101,2]
[392925603,1762147873674,200.0,0.00014087,2]
[392925604,1762147915440,793.02052039,0.00014198,2]
[392925605,1762147970144,168.0,0.0001413,2]
[392925606,1762147973402,168.0,0.00014244,2]
[392925607,1762147979180,151.0,0.00018,30]
[392925608,1762147981016,168.0,0.00014305,2]
[392925611,1762148024214,150.0,0.00013884,2]
[392925612,1762148033994,1600.0,0.00013884,2]
[392925613,1762148081873,1852.42,0.00013883,2]
[392925614,1762148081960,150.0,0.00013883,2]
[392925615,1762148082164,150.0,0.00013883,120]
[392925622,1762148110699,198.0,0.00017011,120]
[392925623,1762148147884,1006.77374009,0.00013896,2]
[392925624,1762148147908,10000.01,0.00013896,2]
[392925625,1762148147933,10000.01,0.00013896,2]
[392925626,1762148147958,10000.01,0.00013896,2]
[392925627,1762148147982,10000.01,0.00013896,2]
[392925628,1762148148006,10000.01,0.00013896,2]
[392925629,1762148148030,10000.01,0.00013896,2]
[392925630,1762148148052,1783.58625991,0.00013896,2]
[392925631,1762148180142,420.0,0.00014192,2]
[392925632,1762148185845,420.0,0.00014334,2]
[392925633,1762148190801,420.0,0.00014245,2]
[392925634,1762148209640,-193.3250575,0.000144,2]
[392925635,1762148222211,168.0,0.00014102,2]
[392925641,1762148346055,166.66,0.00014093,2]
[392925642,1762148427900,3683.32,0.00013655,2]
[392925643,1762148479197,610.0,0.00013699,2]
[392925644,1762148539371,-198.6163425,0.000144,2]
[392925645,1762148539395,-153.75750513,0.00014425,2]
[392925646,1762148599344,-41.24249487,0.00014425,2]
[392925647,1762148599366,-181.28916641,0.00014444,2]
[392925648,1762148615469,4532.03,0.00013663,2]
[392925649,1762148615498,9863.95,0.00013663,2]
[392925651,1762148638354,136.06,0.00013667,2]
[392925652,1762148638381,2614.94,0.00013667,2]
[392925653,1762148712512,150.0,0.00013463,2]
[392925654,1762148712552,150.0,0.00013463,2]
[392925655,1762148712638,289.59287404,0.00013463,2]
[392925656,1762148715905,150.0,0.00013463,2]
[392925657,1762148719253,155.64407104,0.00013463,2]
[392925658,1762148719315,150.0,0.00013463,2]
[392925659,1762148723489,152.89870192,0.00013463,2]
[392925660,1762148729552,1000.0,0.00013699,2]
[392925661,1762148730899,151.8412202,0.00013463,2]
[392925662,1762148731177,150.0,0.00013463,2]
[392925663,1762148731226,150.00000001,0.00013463,2]
[392925664,1762148732541,150.0,0.00013463,2]
[392925666,1762148755536,1638.17,0.00013,2]
[392925667,1762148795792,245.0,0.00018,30]
[392925668,1762148797518,500.0,0.00018,30]
[392925669,1762148824953,500.0,0.0001701,120]
[392925670,1762148833829,1000.0,0.0001701,120]
[392925671,1762148841118,1000.0,0.0001701,120]
[392925686,1762148857099,1500.0,0.00018,30]
[392925687,1762148866115,1000.0,0.00018,30]
[392925688,1762148875351,500.0,0.00018,30]
[392925689,1762148891531,1000.0,0.00018,30]
[392925690,1762148897109,1000.0,0.00018,30]
[392925691,1762148903604,500.0,0.00018,30]
[392925692,1762148942504,1200.0,0.00018,30]
[392925693,1762148974547,1000.0,0.0001701,120]
[392925694,1762149003162,300.0,0.0001701,120]
[392925705,1762149032247,-205.20701749,0.00014462,2]
[392925706,1762149032260,-300.0,0.0001448,2]
[392925707,1762149032272,-8368.55202813,0.00014499,2]
[392925708,1762149032290,-442.87356812,0.00014499,2]
[392925716,1762149032526,-1586.22095898,0.00014499,2]
[392925720,1762149032555,-6060.2273781,0.00014499,2]
[392925733,1762149038200,-3921.12606667,0.00014499,2]
[392925734,1762149038210,-1200.0,0.00014499,2]
[392925735,1762149038220,-300.0,0.00014499,2]
[392925736,1762149038229,-300.0,0.00014499,2]
[392925737,1762149038240,-1200.0,0.00014499,2]
[392925738,1762149038249,-699.2361,0.000145,2]
[392925739,1762149038260,-895.24270194,0.000145,2]
[392925740,1762149038269,-176.98643156,0.000145,2]
[392925741,1762149038279,-346.2374825,0.000145,2]
[392925742,1762149038289,-95.41963877,0.000145,2]
[392925743,1762149038302,-2404.58036123,0.000145,2]
[392925744,1762149038311,-300.0,0.00014505,2]
[392925745,1762149038321,-259.31395445,0.00014505,2]
[392925746,1762149038331,-168.0,0.00014518,2]
[392925747,1762149038341,-895.24270188,0.00014544,2]
[392925748,1762149038352,-176.98643156,0.00014544,2]
[392925749,1762149038361,-1000.0,0.00014563,2]
[392925750,1762149038371,-1000.0,0.00014563,2]
[392925751,1762149038381,-1000.0,0.00014563,2]
[392925752,1762149038391,-399.0,0.00014563,2]
[392925753,1762149038401,-168.0,0.00014563,2]
[392925754,1762149038411,-239.84119403,0.0001458,2]
[392925755,1762149038421,-150.0,0.00014588,2]
[392925757,1762149038432,-1062.19,0.00014589,2]
[392925759,1762149038442,-9999.99,0.00014589,2]
[392925761,1762149038452,-150.99,0.00014589,2]
[392925763,1762149038462,-999.99,0.00014589,2]
[392925765,1762149038472,-9999.99,0.00014589,2]
[392925766,1762149038482,-1424.9537213,0.00014589,2]
[392925769,1762149038494,-7575.7062787,0.00014589,2]
[392925771,1762149038503,-12520.54846503,0.00014589,2]
[392925773,1762149038515,-386.1995566,0.00014589,2]
[392925775,1762149038528,-2902.80197837,0.00014589,2]
[392925778,1762149038537,-895.24270188,0.00014589,2]